bitfinex/quotes_BTCUSD_20250902
["timestamp","ask_amount","ask_price","bid_price","bid_amount"]
[1756825001637,0.04016059,111440.0,111430.0,0.45044968]
[1756825001854,0.03906059,111440.0,111430.0,0.45344968]
[1756825002064,0.03607059,111440.0,111430.0,1.11252327]
[1756825002274,0.01936295,111440.0,111430.0,1.10852327]
[1756825002482,0.02445295,111440.0,111430.0,0.44797968]
[1756825002682,0.02545295,111440.0,111430.0,0.33812487]
[1756825002897,0.20492172,111440.0,111430.0,0.33816487]
[1756825003123,0.22787259,111440.0,111430.0,0.33816487]
[1756825003314,0.08033832,111440.0,111430.0,0.33816487]
[1756825003523,0.09504974,111440.0,111430.0,0.33816487]
[1756825003736,0.09604974,111440.0,111430.0,0.33916487]
[1756825003947,0.0960496,111440.0,111430.0,0.33916487]
[1756825004120,0.27451837,111440.0,111430.0,0.33816487]
[1756825004547,0.27651837,111440.0,111430.0,0.34116487]
[1756825004969,0.24358387,111440.0,111430.0,0.18048487]
[1756825005273,0.0651151,111440.0,111430.0,0.003]
[1756825005477,0.24458387,111440.0,111430.0,0.34100487]
[1756825006177,0.24458387,111440.0,111430.0,0.16156]
[1756825006397,0.24458387,111440.0,111430.0,0.003]
[1756825006620,0.61651837,111440.0,111430.0,0.16156]
[1756825007047,0.60180709,111440.0,111430.0,0.003]
[1756825007253,0.61652081,111440.0,111430.0,0.1616]
[1756825007888,0.61652081,111440.0,111430.0,0.16156]
[1756825008106,1.3283744,111440.0,111430.0,0.003]
[1756825008354,1.4610572,111440.0,111430.0,0.003]
[1756825008577,1.4291227,111440.0,111430.0,0.003]
[1756825009261,0.18995026,111440.0,111430.0,0.001]
[1756825009515,0.24384639,111440.0,111430.0,0.18048487]
[1756825009740,0.24384536,111440.0,111430.0,0.18048487]
[1756825009955,0.24384536,111440.0,111430.0,0.003]
[1756825010453,1.29669895,111440.0,111430.0,0.16144]
[1756825010663,1.32898486,111440.0,111430.0,0.16144]
[1756825010881,1.32798486,111440.0,111430.0,0.003]
[1756825011095,1.32898486,111440.0,111430.0,0.16148]
[1756825011280,1.29669895,111440.0,111430.0,0.16148]
[1756825011487,1.29469895,111440.0,111430.0,0.15848]
[1756825011711,1.29569895,111440.0,111430.0,0.16048]
[1756825011906,0.63762536,111440.0,111430.0,0.16048]
[1756825012167,0.58384536,111440.0,111430.0,0.33796487]
[1756825012623,0.03187079,111440.0,111430.0,0.34147487]
[1756825012841,0.20293172,111440.0,111430.0,0.34147487]
[1756825013024,0.20592172,111440.0,111430.0,0.34147487]
[1756825013246,0.20592172,111440.0,111430.0,0.33996487]
[1756825013665,0.20592172,111440.0,111430.0,0.1604]
[1756825013872,0.20592172,111440.0,111430.0,0.33988487]
[1756825014296,0.02645295,111440.0,111430.0,0.33988487]
[1756825014508,0.20592172,111440.0,111430.0,0.33988487]
[1756825014924,0.02645295,111440.0,111430.0,0.34139487]
[1756825015273,0.02136295,111440.0,111430.0,0.34139487]
[1756825015483,0.002,111440.0,111430.0,0.34139487]
[1756825018864,0.002,111440.0,111430.0,0.45424968]
[1756825019048,0.002,111440.0,111430.0,0.45519968]
[1756825019499,0.002,111440.0,111430.0,0.45424968]
[1756825019676,0.002,111440.0,111430.0,0.45416968]
[1756825021586,0.002,111440.0,111430.0,0.29584968]
[1756825021789,0.002,111440.0,111430.0,0.45400968]
[1756825022632,0.002,111440.0,111430.0,1.11403327]
[1756825022853,0.002,111440.0,111430.0,1.37653327]
[1756825023061,0.002,111440.0,111430.0,1.21837327]
[1756825023275,0.002,111440.0,111430.0,1.37661327]
[1756825023517,0.002,111440.0,111430.0,0.71749968]
[1756825023728,0.002,111440.0,111430.0,1.37657327]
[1756825024161,0.002,111440.0,111430.0,1.41721201]
[1756825024373,0.002,111440.0,111430.0,0.75813842]
[1756825024596,0.002,111440.0,111430.0,1.15471201]
[1756825025459,0.002,111440.0,111430.0,0.99651201]
[1756825025676,0.002,111440.0,111430.0,1.15479201]
[1756825026090,0.002,111440.0,111430.0,1.55479201]
[1756825027212,0.002,111440.0,111430.0,2.15729201]
[1756825027467,0.002,111440.0,111430.0,2.20729201]
[1756825028438,0.002,111440.0,111430.0,2.25729201]
[1756825028668,0.002,111440.0,111430.0,2.09901201]
[1756825029112,0.001,111440.0,111430.0,2.25701201]
[1756825029326,0.002,111440.0,111430.0,2.25801201]
[1756825029451,0.002,111440.0,111430.0,2.20801201]
[1756825029656,0.002,111440.0,111430.0,2.25702201]
[1756825029860,0.002,111440.0,111430.0,2.25797201]
[1756825030062,0.002,111440.0,111430.0,1.49794842]
[1756825030275,0.00411,111440.0,111430.0,0.27591086]
[1756825030488,0.0062,111440.0,111430.0,0.43056086]
[1756825030693,0.0062,111440.0,111430.0,0.45300968]
[1756825030908,0.0062,111440.0,111430.0,0.45500968]
[1756825030909,0.002,111440.0,111430.0,0.45500968]
[1756825031127,0.001,111440.0,111430.0,1.11208327]
[1756825031332,0.0062,111440.0,111430.0,0.45300968]
[1756825031539,0.002,111440.0,111430.0,0.29684968]
[1756825031746,0.0062,111440.0,111430.0,0.43307086]
[1756825032167,0.0052,111440.0,111430.0,0.27140086]
[1756825032398,0.66427359,111440.0,111430.0,0.33856487]
[1756825033266,0.0052,111440.0,111430.0,0.33756487]
[1756825033681,0.0052,111440.0,111430.0,0.33856487]
[1756825034135,0.0052,111440.0,111430.0,0.43048086]
[1756825034355,0.00046896,111450.0,111440.0,0.17646877]
[1756825034570,0.00046896,111450.0,111440.0,0.35256358]
[1756825034813,0.00046896,111450.0,111440.0,0.35407358]
[1756825034998,0.00046896,111450.0,111440.0,0.35107358]
[1756825035156,0.00046896,111450.0,111440.0,1.01009717]
[1756825035353,0.00046896,111450.0,111440.0,0.35007358]
[1756825035574,0.00257896,111450.0,111440.0,0.34856358]
[1756825035831,0.00346896,111450.0,111440.0,0.50911358]
[1756825036143,0.00146896,111450.0,111440.0,0.50911358]
[1756825037222,0.00046896,111450.0,111440.0,1.16813717]
[1756825037429,0.00046896,111450.0,111440.0,1.82063717]
[1756825037641,0.00046896,111450.0,111440.0,2.22063717]
[1756825038201,0.00046896,111450.0,111440.0,2.22663717]
[1756825038202,0.00246896,111450.0,111440.0,2.22663717]
[1756825038423,0.00046896,111450.0,111440.0,2.22063717]
[1756825038635,0.00146896,111450.0,111440.0,2.22163717]
[1756825038848,0.00346896,111450.0,111440.0,1.56856358]
[1756825039053,0.00246896,111450.0,111440.0,2.22663717]
[1756825039273,0.00146896,111450.0,111440.0,2.22163717]
[1756825039474,0.00146896,111450.0,111440.0,2.22763717]
[1756825039649,0.00346896,111450.0,111440.0,2.22763717]
[1756825039865,0.00246896,111450.0,111440.0,2.22663717]
[1756825040090,0.00346896,111450.0,111440.0,2.22751717]
[1756825040468,0.00346896,111450.0,111440.0,2.06959717]
[1756825040651,0.00346896,111450.0,111440.0,2.22751717]
[1756825040910,0.00346896,111450.0,111440.0,1.35957358]
[1756825041212,0.00357896,111450.0,111440.0,1.35357358]
[1756825041427,0.00666896,111450.0,111440.0,0.48654476]
[1756825041671,0.00666896,111450.0,111440.0,0.50848358]
[1756825041911,0.00146896,111450.0,111440.0,0.48905476]
[1756825042122,0.00046896,111450.0,111440.0,1.16806717]
[1756825042343,0.00146896,111450.0,111440.0,1.16806717]
[1756825042563,0.00146896,111450.0,111440.0,1.16901717]
[1756825042782,0.00046896,111450.0,111440.0,1.16901717]
[1756825043219,0.00146896,111450.0,111440.0,1.01114717]
[1756825043435,0.00666896,111450.0,111440.0,0.50848358]
[1756825043664,0.00146896,111450.0,111440.0,0.50999358]
[1756825044103,0.00146896,111450.0,111440.0,1.16906717]
[1756825044329,0.00146896,111450.0,111440.0,0.50899358]
[1756825044546,0.00246896,111450.0,111440.0,0.50899358]
[1756825045195,0.00246896,111450.0,111440.0,0.35107358]
[1756825045413,0.00246896,111450.0,111440.0,0.50899358]
[1756825045637,0.00246896,111450.0,111440.0,0.93226886]
[1756825045855,0.00246896,111450.0,111440.0,0.50994358]
[1756825046079,0.00246896,111450.0,111440.0,1.33226886]
[1756825047649,0.00246896,111450.0,111440.0,0.90899358]
[1756825047847,0.00246896,111450.0,111440.0,1.33226886]
[1756825049104,0.00329,111480.0,111470.0,0.20035929]
[1756825049310,0.00034065,111480.0,111470.0,0.51494528]
[1756825049522,0.00034065,111480.0,111470.0,0.93822056]
[1756825049729,0.00034065,111480.0,111470.0,1.33822056]
[1756825050144,0.00034065,111480.0,111470.0,1.38917056]
[1756825050352,0.00034065,111480.0,111470.0,1.72917056]
[1756825050562,1e-08,111480.0,111470.0,2.21270697]
[1756825051095,0.00100001,111480.0,111470.0,2.21470697]
[1756825051315,0.00100001,111480.0,111470.0,1.79143169]
[1756825051529,1e-08,111480.0,111470.0,2.21270697]
[1756825051726,1e-08,111480.0,111470.0,2.21470697]
[1756825051943,1e-08,111480.0,111470.0,1.36815641]
[1756825052324,3.0,111490.0,111480.0,0.64034319]
[1756825052555,3.0,111490.0,111480.0,0.89164918]
[1756825052975,3.0,111490.0,111480.0,1.15704446]
[1756825053178,3.0,111490.0,111480.0,1.71492446]
[1756825053413,3.0,111490.0,111480.0,1.55704446]
[1756825053642,3.0052,111490.0,111480.0,1.19013918]
[1756825053917,3.0052,111490.0,111480.0,0.85013918]
[1756825054966,3.0052,111490.0,111480.0,0.85113918]
[1756825055435,3.0052,111490.0,111480.0,1.27441446]
[1756825055643,3.0052,111490.0,111480.0,0.87341446]
[1756825056041,3.0052,111490.0,111480.0,0.87441446]
[1756825056219,3.0052,111490.0,111480.0,0.87692446]
[1756825056377,3.0,111490.0,111480.0,0.87692446]
[1756825057175,3.0052,111490.0,111480.0,0.87541446]
[1756825057595,3.0052,111490.0,111480.0,0.71753446]
[1756825057991,3.0052,111490.0,111480.0,0.29425918]
[1756825058210,3.0052,111490.0,111480.0,0.45213918]
[1756825058426,3.0052,111490.0,111480.0,0.45209918]
[1756825060351,3.0052,111490.0,111480.0,0.87537446]
[1756825060567,3.0052,111490.0,111480.0,0.45209918]
[1756825061215,3.0052,111490.0,111480.0,0.87537446]
[1756825062522,3.0052,111490.0,111480.0,0.29425918]
[1756825062739,3.0052,111490.0,111480.0,0.45209918]
[1756825063384,3.0,111490.0,111480.0,1.30015974]
[1756825063703,3.0,111490.0,111480.0,0.87688446]
[1756825063901,3.0,111490.0,111480.0,2.35360974]
[1756825064664,3.0,111490.0,111480.0,1.55505918]
[1756825064919,3.0,111490.0,111480.0,1.55510918]
[1756825065136,3.0,111490.0,111480.0,1.82054446]
[1756825065343,3.00493,111490.0,111480.0,1.01232036]
[1756825065555,3.00493,111490.0,111480.0,1.59494564]
[1756825065775,3.00493,111490.0,111480.0,1.17016036]
[1756825065984,3.00493,111490.0,111480.0,1.59343564]
[1756825066203,3.0,111490.0,111480.0,1.59494564]
[1756825066407,3.0,111490.0,111480.0,1.61588446]
[1756825067097,3.00195,111490.0,111480.0,1.61588446]
[1756825067706,3.0,111490.0,111480.0,1.45804446]
[1756825067913,3.0,111490.0,111480.0,1.61588446]
[1756825068121,3.0,111490.0,111480.0,2.09010974]
[1756825068526,3.0,111490.0,111480.0,1.24260918]
[1756825068737,3.0,111490.0,111480.0,2.08915974]
[1756825069173,3.0,111490.0,111480.0,1.66588446]
[1756825069758,3.00493,111490.0,111480.0,1.24260918]
[1756825069975,3.0,111490.0,111480.0,1.66588446]
[1756825070130,3.00195,111490.0,111480.0,1.66437446]
[1756825070346,3.0,111490.0,111480.0,1.66588446]
[1756825070570,3.0,111490.0,111480.0,1.66584446]
[1756825071395,3.0,111490.0,111480.0,2.08911974]
[1756825072202,3.0,111490.0,111480.0,1.66584446]
[1756825073007,3.0,111490.0,111480.0,1.50804446]
[1756825073207,3.00195,111490.0,111480.0,1.66584446]
[1756825073374,3.0,111490.0,111480.0,1.66584446]
[1756825073570,3.0,111490.0,111480.0,2.08911974]
[1756825074032,2.46176528,111490.0,111480.0,2.35256974]
[1756825074248,2.1884897,111490.0,111480.0,2.40256974]
[1756825074444,2.06584891,111490.0,111480.0,2.42952681]
[1756825074972,1.46541162,111490.0,111480.0,2.86782681]
[1756825075176,1.19354706,111490.0,111480.0,3.10494681]
[1756825075382,1.05744706,111490.0,111480.0,2.96884681]
[1756825075590,0.93104706,111490.0,111480.0,3.15494681]
[1756825075816,0.13478213,111490.0,111480.0,3.15494681]
[1756825076016,0.10048908,111490.0,111480.0,2.99714681]
[1756825076225,0.00642875,111490.0,111480.0,2.99714681]
[1756825076430,1e-08,111490.0,111480.0,2.30839625]
[1756825076699,1e-08,111490.0,111480.0,2.89714681]
[1756825076888,1e-08,111490.0,111480.0,3.15494681]
[1756825077729,1e-08,111490.0,111480.0,2.94714681]
[1756825077867,1e-08,111490.0,111480.0,3.10494681]
[1756825078590,1e-08,111490.0,111480.0,2.07870743]
[1756825078797,1e-08,111490.0,111480.0,2.65978271]
[1756825079427,1e-08,111490.0,111480.0,2.68072153]
[1756825079761,1e-08,111490.0,111480.0,3.10399681]
[1756825079977,1e-08,111490.0,111480.0,2.94619681]
[1756825080178,0.00493001,111490.0,111480.0,2.47292153]
[1756825080360,0.00493001,111490.0,111480.0,1.48061153]
[1756825080566,0.00493001,111490.0,111480.0,1.16509625]
[1756825080774,0.00493001,111490.0,111480.0,1.19415743]
[1756825080971,0.00493001,111490.0,111480.0,1.37639743]
[1756825081175,0.00493001,111490.0,111480.0,1.50720036]
[1756825081376,0.00493001,111490.0,111480.0,1.88047564]
[1756825081622,0.00493001,111490.0,111480.0,1.95141446]
[1756825081860,0.00493001,111490.0,111480.0,1.79365446]
[1756825082095,0.00493001,111490.0,111480.0,1.24944036]
[1756825082315,0.00493001,111490.0,111480.0,1.40720036]
[1756825082525,0.00493001,111490.0,111480.0,1.42813918]
[1756825083962,0.00493001,111490.0,111480.0,1.85141446]
[1756825085272,0.00493001,111490.0,111480.0,1.03325918]
[1756825085492,0.00493001,111490.0,111480.0,0.45101918]
[1756825085493,0.05959001,111490.0,111480.0,0.45101918]
[1756825085730,0.48286529,111490.0,111480.0,0.09291599]
[1756825085947,0.66225357,111490.0,111480.0,0.15876]
[1756825086176,0.68158771,111490.0,111480.0,0.15876]
[1756825086391,0.25831243,111490.0,111480.0,0.15876]
[1756825086836,0.68158771,111490.0,111480.0,0.15776]
[1756825087280,0.68258771,111490.0,111480.0,0.15976]
[1756825087473,0.66425357,111490.0,111480.0,0.15976]
[1756825087689,0.66425357,111490.0,111480.0,0.33916437]
[1756825087916,0.66425357,111490.0,111480.0,0.15976]
[1756825088364,0.67418144,111490.0,111480.0,0.15976]
[1756825088584,0.07151788,111490.0,111480.0,0.33916437]
[1756825088798,0.67418144,111490.0,111480.0,0.33916437]
[1756825089473,0.67418144,111490.0,111480.0,0.15976]
[1756825089655,0.67418144,111490.0,111480.0,0.33916437]
[1756825090005,0.49479316,111490.0,111480.0,0.33916437]
[1756825090212,0.07151788,111490.0,111480.0,0.33916437]
[1756825090423,0.67418144,111490.0,111480.0,0.33916437]
[1756825090852,0.49479316,111490.0,111480.0,0.33916437]
[1756825091499,0.49479316,111490.0,111480.0,0.43108036]
[1756825092884,0.48486529,111490.0,111480.0,0.43108036]
[1756825093828,0.66425357,111490.0,111480.0,0.27332036]
[1756825094051,0.48486529,111490.0,111480.0,0.43112036]
[1756825094278,0.00693001,111490.0,111480.0,0.43112036]
[1756825094489,0.43020529,111490.0,111480.0,0.43112036]
[1756825094729,0.43020529,111490.0,111480.0,0.09391599]
[1756825094944,0.43020529,111490.0,111480.0,0.43112036]
[1756825095399,0.67441357,111490.0,111480.0,0.1598]
[1756825097910,0.25113829,111490.0,111480.0,0.33920437]
[1756825098136,0.43020529,111490.0,111480.0,0.33920437]
[1756825098353,0.00693001,111490.0,111480.0,0.43112036]
[1756825098762,0.60959357,111490.0,111480.0,0.43112036]
[1756825098990,0.60959357,111490.0,111480.0,0.09391599]
[1756825099199,0.18631829,111490.0,111480.0,0.43112036]
[1756825099357,0.60959357,111490.0,111480.0,0.43112036]
[1756825099568,0.43020529,111490.0,111480.0,0.43112036]
[1756825099982,0.00693001,111490.0,111480.0,0.43112036]
[1756825101122,0.00693001,111490.0,111480.0,0.43263036]
[1756825101324,0.00725001,111490.0,111480.0,0.43112036]
[1756825101660,0.00725001,111490.0,111480.0,0.43263036]
[1756825101859,0.00200001,111490.0,111480.0,0.45356918]
[1756825102027,0.00404001,111490.0,111480.0,0.45356918]
[1756825102193,0.00200001,111490.0,111480.0,0.45356918]
[1756825103859,0.00200001,111490.0,111480.0,0.87684446]
[1756825104069,0.00200001,111490.0,111480.0,0.87779446]
[1756825104264,0.00200001,111490.0,111480.0,0.71904446]
[1756825104487,0.00200001,111490.0,111480.0,0.45356918]
[1756825104881,0.00200001,111490.0,111480.0,0.29576918]
[1756825105061,0.00200001,111490.0,111480.0,0.45356918]
[1756825105858,0.00200001,111490.0,111480.0,0.29576918]
[1756825106071,0.00200001,111490.0,111480.0,0.45356918]
[1756825106631,0.00200001,111490.0,111480.0,0.87684446]
[1756825107051,0.00200001,111490.0,111480.0,0.45356918]
[1756825107273,0.00200001,111490.0,111480.0,0.45451918]
[1756825107482,0.00200001,111490.0,111480.0,0.45356918]
[1756825108178,0.00200001,111490.0,111480.0,0.85356918]
[1756825111397,0.00200001,111490.0,111480.0,1.51190752]
[1756825111609,0.00200001,111490.0,111480.0,1.85285752]
[1756825112266,0.00200001,111490.0,111480.0,1.85190752]
[1756825112471,0.00200001,111490.0,111480.0,1.19356918]
[1756825113132,0.00200001,111490.0,111480.0,1.19451918]
[1756825113352,0.00200001,111490.0,111480.0,1.90285752]
[1756825114389,0.00200001,111490.0,111480.0,1.74505752]
[1756825114636,0.00200001,111490.0,111480.0,1.90285752]
[1756825115147,0.00200001,111490.0,111480.0,1.74505752]
[1756825115380,0.00200001,111490.0,111480.0,1.90285752]
[1756825115602,1e-08,111490.0,111480.0,1.90285752]
[1756825115818,1e-08,111490.0,111480.0,1.95285752]
[1756825116458,1e-08,111490.0,111480.0,1.95281752]
[1756825117549,3.0,111510.0,111500.0,1.96307534]
[1756825117975,3.0,111510.0,111500.0,1.96402534]
[1756825118414,3.001,111510.0,111500.0,1.147927]
[1756825118631,3.0,111510.0,111500.0,1.96307534]
[1756825118849,3.0,111510.0,111500.0,1.96502534]
[1756825119031,3.001,111510.0,111500.0,1.80726534]
[1756825119242,3.001,111510.0,111500.0,1.80631534]
[1756825119464,3.001,111510.0,111500.0,1.147977]
[1756825119673,3.001,111510.0,111500.0,1.96407534]
[1756825120127,3.003,111510.0,111500.0,1.097977]
[1756825120345,3.00607,111510.0,111500.0,1.096467]
[1756825120780,3.00607,111510.0,111500.0,0.914227]
[1756825121436,3.00507,111510.0,111500.0,0.514227]
[1756825121837,3.0,111510.0,111500.0,1.17307534]
[1756825122580,3.00507,111510.0,111500.0,0.913227]
[1756825122808,3.0,111510.0,111500.0,1.96307534]
[1756825124428,3.0,111510.0,111500.0,1.96407534]
[1756825124835,3.0,111510.0,111500.0,1.80531534]
[1756825125039,3.00507,111510.0,111500.0,1.91152534]
[1756825125271,3.00507,111510.0,111500.0,1.13613479]
[1756825125481,3.00507,111510.0,111500.0,1.096467]
[1756825125677,3.00507,111510.0,111500.0,0.756467]
[1756825125894,3.72553834,111510.0,111500.0,0.33552818]
[1756825126103,3.0672,111510.0,111500.0,0.49324818]
[1756825127372,3.90489445,111510.0,111500.0,0.33552818]
[1756825127542,3.72553834,111510.0,111500.0,0.49224818]
[1756825128447,3.90489445,111510.0,111490.0,0.17937381]
[1756825128657,0.72353834,111500.0,111490.0,0.27130427]
[1756825128865,0.72553834,111500.0,111490.0,0.42902427]
[1756825129896,0.90491053,111500.0,111490.0,0.42902427]
[1756825130078,0.90491053,111500.0,111490.0,0.24963599]
[1756825130492,0.90491053,111500.0,111490.0,0.42902427]
[1756825130702,0.72553834,111500.0,111490.0,0.42902427]
[1756825131107,0.90491053,111500.0,111490.0,0.42902427]
[1756825132246,0.24657219,111500.0,111490.0,0.42902427]
[1756825132447,0.90491053,111500.0,111490.0,0.42902427]
[1756825132870,0.90491053,111500.0,111480.0,0.25157458]
[1756825133085,0.66140834,111490.0,111480.0,0.34349057]
[1756825133309,0.66340834,111490.0,111480.0,0.50121057]
[1756825133539,0.90492662,111490.0,111480.0,0.22092]
[1756825133971,0.90492662,111490.0,111480.0,0.0632]
[1756825134186,0.17941343,111480.0,111460.0,0.44031474]
[1756825134404,0.90495881,111470.0,111460.0,0.15525664]
[1756825134608,0.90495881,111470.0,111460.0,0.4924132]
[1756825135282,0.72553834,111470.0,111460.0,0.4924132]
[1756825135715,0.90495881,111470.0,111460.0,0.4924132]
[1756825135931,0.72553834,111470.0,111460.0,0.4924132]
[1756825136347,0.00507,111470.0,111460.0,0.4924132]
[1756825138168,0.66340834,111470.0,111460.0,0.4934132]
[1756825138618,0.66340834,111470.0,111460.0,0.4949232]
[1756825139005,0.00507,111470.0,111460.0,0.4949232]
[1756825139440,0.00507,111470.0,111460.0,0.4934132]
[1756825139801,0.66340834,111470.0,111460.0,0.4934132]
[1756825140008,0.66340834,111470.0,111460.0,0.4949232]
[1756825140414,0.66140834,111480.0,111470.0,0.17942047]
[1756825140618,0.66340834,111480.0,111470.0,0.27133646]
[1756825141023,0.00507,111480.0,111470.0,0.29378528]
[1756825141230,0.67136458,111500.0,111490.0,0.17938828]
[1756825141436,0.67336458,111500.0,111490.0,0.33710828]
[1756825142094,0.00507,111500.0,111490.0,0.42902427]
[1756825142292,0.00507,111500.0,111490.0,0.49226427]
[1756825142555,0.66340834,111500.0,111490.0,0.49226427]
[1756825142968,0.66340834,111500.0,111490.0,0.49326427]
[1756825143908,0.84278053,111500.0,111490.0,0.15615599]
[1756825144117,0.85250538,111500.0,111490.0,0.49326427]
[1756825144326,0.84278053,111500.0,111490.0,0.33554427]
[1756825144530,0.84278053,111500.0,111490.0,0.49326427]
[1756825144986,0.18444219,111500.0,111490.0,0.49326427]
[1756825145194,0.84278053,111500.0,111490.0,0.49326427]
[1756825145962,0.84278053,111500.0,111490.0,0.22196]
[1756825146392,0.8527091,111500.0,111490.0,0.40134828]
[1756825146605,0.67333691,111500.0,111490.0,0.40134828]
[1756825146836,0.8527091,111500.0,111490.0,0.40134828]
[1756825147053,0.19437076,111500.0,111490.0,0.40134828]
[1756825147267,0.8527091,111500.0,111490.0,0.40134828]
[1756825147714,0.00507,111500.0,111490.0,0.49477427]
[1756825147937,0.00507,111500.0,111490.0,0.49326427]
[1756825148578,0.66340834,111500.0,111490.0,0.49326427]
[1756825149675,0.00507,111500.0,111490.0,0.49477427]
[1756825149895,0.66340834,111500.0,111490.0,0.49477427]
[1756825150116,0.66029834,111500.0,111490.0,0.49326427]
[1756825150322,0.66334834,111500.0,111490.0,0.49326427]
[1756825152603,0.84272053,111500.0,111490.0,0.33554427]
[1756825152869,0.84272053,111500.0,111490.0,0.31383599]
[1756825153043,0.84272053,111500.0,111490.0,0.49322427]
[1756825153250,0.90438053,111500.0,111490.0,0.22192]
[1756825153453,0.90438053,111500.0,111490.0,0.15868]
[1756825153874,0.90438053,111500.0,111490.0,0.001]
[1756825154082,1.27267499,111500.0,111490.0,0.001]
[1756825154291,1.38390844,111500.0,111490.0,0.001]
[1756825154518,1.41088097,111500.0,111490.0,0.001]
[1756825155361,1.39936502,111500.0,111490.0,0.001]
[1756825156198,1.29067052,111500.0,111490.0,0.001]
[1756825156423,1.29067052,111500.0,111490.0,0.17938828]
[1756825156642,0.00501,111500.0,111490.0,0.27130427]
[1756825157068,0.00501,111500.0,111490.0,0.27230427]
[1756825157274,0.00501,111500.0,111490.0,0.27381427]
[1756825157422,0.00501,111500.0,111490.0,0.27130427]
[1756825157828,0.00501,111500.0,111490.0,0.27230427]
[1756825158454,0.66334834,111500.0,111490.0,0.27381427]
[1756825159118,3.53231481,111510.0,111500.0,0.17937219]
[1756825159338,4.19261315,111510.0,111500.0,0.33701219]
[1756825159754,4.19261315,111510.0,111500.0,0.15764]
[1756825160327,4.19361315,111510.0,111500.0,0.15764]
[1756825160725,4.01425704,111510.0,111500.0,0.33852219]
[1756825160927,3.0109087,111510.0,111500.0,0.33852219]
[1756825161131,3.66924704,111510.0,111500.0,0.33852219]
[1756825161329,3.0159187,111510.0,111500.0,0.33852219]
[1756825161556,3.67425704,111510.0,111500.0,0.33852219]
[1756825161952,3.85361315,111510.0,111500.0,0.17937219]
[1756825162130,3.67425704,111510.0,111500.0,0.33701219]
[1756825162550,3.85361315,111510.0,111500.0,0.33701219]
[1756825162966,3.19527481,111510.0,111500.0,0.33701219]
[1756825163185,3.0149187,111510.0,111500.0,0.33852219]
[1756825163389,3.67325704,111510.0,111500.0,0.33852219]
[1756825163601,3.67325704,111510.0,111500.0,0.33952219]
[1756825164053,3.65833834,111510.0,111500.0,0.33952219]
[1756825164270,3.0,111510.0,111500.0,0.49467818]
[1756825165346,3.0,111510.0,111500.0,0.515617]
[1756825166012,3.0,111510.0,111500.0,0.357977]
[1756825166223,3.0,111510.0,111500.0,0.515577]
[1756825167119,3.00501,111510.0,111500.0,0.514067]
[1756825167332,3.00501,111510.0,111500.0,0.515577]
[1756825167540,3.00501,111510.0,111500.0,0.357977]
[1756825167749,3.00501,111510.0,111500.0,0.515577]
[1756825168004,3.00501,111510.0,111500.0,0.356467]
[1756825168208,3.00501,111510.0,111500.0,0.514067]
[1756825168644,3.0,111510.0,111500.0,0.515577]
[1756825168849,3.00196,111510.0,111500.0,0.515577]
[1756825169268,3.00501,111510.0,111500.0,0.515577]
[1756825169684,3.00196,111510.0,111500.0,0.515577]
[1756825169894,3.00501,111510.0,111500.0,0.514027]
[1756825170287,3.42796341,111510.0,111500.0,0.514027]
[1756825170717,3.42796341,111510.0,111500.0,0.776527]
[1756825171164,3.00196,111510.0,111500.0,0.778037]
[1756825171369,3.0,111510.0,111500.0,0.778037]
[1756825172626,3.0,111510.0,111500.0,0.620477]
[1756825172950,3.00196,111510.0,111500.0,0.778037]
[1756825173132,3.00196,111510.0,111500.0,0.75709818]
[1756825173401,3.00501,111510.0,111500.0,0.75558818]
[1756825174106,3.42796341,111510.0,111500.0,0.75558818]
[1756825174334,3.60731952,111510.0,111500.0,0.41865599]
[1756825174752,3.42796341,111510.0,111500.0,0.75554818]
[1756825174979,3.00501,111510.0,111500.0,0.75554818]
[1756825175199,3.42796341,111510.0,111500.0,0.75554818]
[1756825175789,3.42600341,111510.0,111500.0,0.75705818]
[1756825176009,3.0,111510.0,111500.0,0.75705818]
[1756825177405,3.0,111510.0,111500.0,0.777997]
[1756825177601,3.0,111510.0,111500.0,0.515497]
[1756825178016,3.0,111510.0,111500.0,0.516447]
[1756825178450,3.0,111510.0,111500.0,1.27940041]
[1756825178867,3.0,111510.0,111500.0,0.856447]
[1756825179099,3.0,111510.0,111500.0,1.27940041]
[1756825179947,3.0,111510.0,111500.0,0.856447]
[1756825180126,3.0,111510.0,111500.0,1.27940041]
[1756825180352,3.0,111510.0,111500.0,1.12188041]
[1756825180557,3.0,111510.0,111500.0,1.27936041]
[1756825181009,3.0,111510.0,111500.0,1.67936041]
[1756825181223,3.0,111510.0,111500.0,1.94186041]
[1756825182209,3.0,111510.0,111500.0,1.518907]
[1756825182432,3.0,111510.0,111500.0,1.78338041]
[1756825182664,3.0,111510.0,111500.0,1.93991041]
[1756825182852,3.0,111510.0,111500.0,1.517957]
[1756825183065,3.0,111510.0,111500.0,1.94091041]
[1756825183460,3.0,111510.0,111500.0,1.78438041]
[1756825183676,3.0,111510.0,111500.0,1.517957]
[1756825183882,3.0,111510.0,111500.0,1.94091041]
[1756825184087,3.0,111510.0,111500.0,1.518907]
[1756825184292,3.0,111510.0,111500.0,1.94186041]
[1756825184742,3.0,111510.0,111500.0,1.99186041]
[1756825185350,3.0,111510.0,111500.0,1.99182041]
[1756825185575,3.0,111510.0,111500.0,2.43012041]
[1756825185999,3.0,111510.0,111500.0,2.27268041]
[1756825186214,3.0,111510.0,111500.0,2.43012041]
[1756825186621,3.0,111510.0,111500.0,2.27268041]
[1756825186829,3.0,111510.0,111500.0,2.43012041]
[1756825187208,2.1961067,111510.0,111500.0,1.77932041]
[1756825187418,1.98679307,111510.0,111500.0,1.77932041]
[1756825187642,1.73229021,111510.0,111500.0,1.77932041]
[1756825187819,1.57310225,111510.0,111500.0,1.77932041]
[1756825188221,1.24238802,111510.0,111500.0,1.88438041]
[1756825188421,1.24238802,111510.0,111500.0,2.04178041]
[1756825188625,1.07085778,111510.0,111500.0,2.04178041]
[1756825188835,0.66810516,111510.0,111500.0,2.06873014]
[1756825189051,0.59278988,111510.0,111500.0,1.91133014]
[1756825189290,0.47332338,111510.0,111500.0,2.06873014]
[1756825190474,0.47332338,111510.0,111500.0,1.91133014]
[1756825190687,0.47332338,111510.0,111500.0,2.06873014]
[1756825191121,3.0031,111540.0,111530.0,0.54026276]
[1756825191338,3.0052908,111540.0,111530.0,1.05033875]
[1756825191784,3.0052908,111540.0,111530.0,1.45033875]
[1756825192459,3.0052908,111540.0,111530.0,1.45133875]